[Event "Titled Tuesday Blitz May 03 Late 2022"]
[White "Drygalov, Sergey"]
[Black "Deac, Bogdan-Daniel"]
[WhiteFideId "24171743"]
[BlackFideId "1226380"]
[WhiteElo "2514"]
[BlackElo "2648"]
[Result "1-0"]
[Round "08"]
[TimeControl "180+1"]
[Date "2022.05.03"]
[WhiteClock "0:00:35"]
[BlackClock "0:00:01"]

1. d4 {[%clk 0:02:58]}  Nf6 {[%clk 0:02:59]} 2. c4 {[%clk 0:02:59]}  e6 {[%clk 0:03:00]} 3. Nc3 {[%clk 0:02:59]}  Bb4 {[%clk 0:02:59]} 4. a3 {[%clk 0:03:00]}  Bxc3+ {[%clk 0:02:59]} 5. bxc3 {[%clk 0:03:01]}  Nc6 {[%clk 0:03:00]} 6. e3 {[%clk 0:03:01]}  b6 {[%clk 0:02:57]} 7. Bd3 {[%clk 0:03:01]}  Ba6 {[%clk 0:02:57]} 8. e4 {[%clk 0:02:57]}  e5 {[%clk 0:02:49]} 9. Nf3 {[%clk 0:02:56]}  Qe7 {[%clk 0:02:40]} 10. O-O {[%clk 0:02:49]}  O-O {[%clk 0:02:36]} 11. Bg5 {[%clk 0:02:49]}  h6 {[%clk 0:02:31]} 12. Bh4 {[%clk 0:02:49]}  d6 {[%clk 0:02:31]} 13. c5 {[%clk 0:02:38]}  Bxd3 {[%clk 0:02:25]} 14. cxd6 {[%clk 0:02:38]}  cxd6 {[%clk 0:02:25]} 15. Qxd3 {[%clk 0:02:38]}  Rac8 {[%clk 0:02:24]} 16. Rfd1 {[%clk 0:02:31]}  Na5 {[%clk 0:02:19]} 17. h3 {[%clk 0:02:15]}  Qe6 {[%clk 0:01:47]} 18. dxe5 {[%clk 0:01:41]}  dxe5 {[%clk 0:01:46]} 19. Bxf6 {[%clk 0:01:41]}  Qxf6 {[%clk 0:01:45]} 20. Qd6 {[%clk 0:01:41]}  Qxd6 {[%clk 0:01:33]} 21. Rxd6 {[%clk 0:01:42]}  f6 {[%clk 0:01:33]} 22. Rd7 {[%clk 0:01:40]}  Rf7 {[%clk 0:01:29]} 23. Rad1 {[%clk 0:01:40]}  Rc7 {[%clk 0:01:27]} 24. Rd8+ {[%clk 0:01:31]}  Kh7 {[%clk 0:01:25]} 25. Ra8 {[%clk 0:01:26]}  Rfd7 {[%clk 0:01:13]} 26. Rd5 {[%clk 0:01:15]}  Nb3 {[%clk 0:00:45]} 27. Nh4 {[%clk 0:01:08]}  g6 {[%clk 0:00:32]} 28. Nf3 {[%clk 0:00:54]}  Kg7 {[%clk 0:00:31]} 29. h4 {[%clk 0:00:53]}  h5 {[%clk 0:00:31]} 30. c4 {[%clk 0:00:51]}  Nc5 {[%clk 0:00:18]} 31. Nd2 {[%clk 0:00:51]}  Ne6 {[%clk 0:00:17]} 32. g3 {[%clk 0:00:51]}  Kf7 {[%clk 0:00:13]} 33. a4 {[%clk 0:00:51]}  Nc5 {[%clk 0:00:10]} 34. f4 {[%clk 0:00:47]}  exf4 {[%clk 0:00:10]} 35. gxf4 {[%clk 0:00:47]}  Re7 {[%clk 0:00:04]} 36. e5 {[%clk 0:00:47]}  fxe5 {[%clk 0:00:03]} 37. fxe5 {[%clk 0:00:48]}  Ke6 {[%clk 0:00:03]} 38. Nf3 {[%clk 0:00:49]}  Kf5 {[%clk 0:00:03]} 39. Rf8+ {[%clk 0:00:48]}  Ke4 {[%clk 0:00:02]} 40. Ng5+ {[%clk 0:00:48]}  Ke3 {[%clk 0:00:01]} 41. Rf3+ {[%clk 0:00:48]}  Ke2 {[%clk 0:00:02]} 42. Rf2+ {[%clk 0:00:48]}  Ke3 {[%clk 0:00:02]} 43. Rdd2 {[%clk 0:00:44]}  Rcd7 {[%clk 0:00:01]} 44. Rfe2+ {[%clk 0:00:35]}  Kf4 {[%clk 0:00:01]} 45. Rd5 {[%clk 0:00:35]} 1-0


[Site "https://www.chess.com"]

[Event "Titled Tuesday Blitz May 03 Late 2022"]
[White "Dubov, Daniil"]
[Black "Rasulov, Vugar"]
[WhiteFideId "24126055"]
[BlackFideId "13402390"]
[WhiteElo "2791"]
[BlackElo "2560"]
[Result "1-0"]
[Round "08"]
[TimeControl "180+1"]
[Date "2022.05.03"]
[WhiteClock "0:00:05"]
[BlackClock "0:00:03"]

1. d4 {[%clk 0:03:00]}  Nf6 {[%clk 0:03:00]} 2. Nf3 {[%clk 0:03:00]}  d5 {[%clk 0:03:00]} 3. c4 {[%clk 0:03:01]}  c6 {[%clk 0:03:00]} 4. Nc3 {[%clk 0:03:01]}  e6 {[%clk 0:02:58]} 5. g3 {[%clk 0:03:01]}  Nbd7 {[%clk 0:02:57]} 6. Bg2 {[%clk 0:03:01]}  dxc4 {[%clk 0:02:58]} 7. O-O {[%clk 0:03:01]}  Be7 {[%clk 0:02:58]} 8. e4 {[%clk 0:03:01]}  O-O {[%clk 0:02:59]} 9. Bf4 {[%clk 0:03:02]}  b5 {[%clk 0:02:55]} 10. d5 {[%clk 0:03:01]}  exd5 {[%clk 0:02:56]} 11. exd5 {[%clk 0:03:01]}  Nxd5 {[%clk 0:02:56]} 12. Nxd5 {[%clk 0:03:01]}  cxd5 {[%clk 0:02:57]} 13. Qxd5 {[%clk 0:03:01]}  Nb6 {[%clk 0:02:57]} 14. Qxb5 {[%clk 0:03:01]}  Qd5 {[%clk 0:02:58]} 15. Qxd5 {[%clk 0:02:54]}  Nxd5 {[%clk 0:02:59]} 16. Nd4 {[%clk 0:02:33]}  Bb7 {[%clk 0:02:47]} 17. Rfe1 {[%clk 0:02:23]}  Bf6 {[%clk 0:02:46]} 18. Be5 {[%clk 0:02:22]}  Rad8 {[%clk 0:02:31]} 19. Nf5 {[%clk 0:01:53]}  Bc8 {[%clk 0:02:10]} 20. Bxf6 {[%clk 0:01:30]}  Nxf6 {[%clk 0:02:09]} 21. Ne7+ {[%clk 0:01:30]}  Kh8 {[%clk 0:02:10]} 22. Nxc8 {[%clk 0:01:27]}  Rxc8 {[%clk 0:02:11]} 23. Rac1 {[%clk 0:01:27]}  Rc7 {[%clk 0:01:56]} 24. Rc2 {[%clk 0:01:24]}  g5 {[%clk 0:01:47]} 25. Rec1 {[%clk 0:01:23]}  Rd8 {[%clk 0:01:43]} 26. Bf1 {[%clk 0:01:20]}  c3 {[%clk 0:01:32]} 27. Rxc3 {[%clk 0:01:10]}  Rxc3 {[%clk 0:01:32]} 28. Rxc3 {[%clk 0:01:11]}  Rd2 {[%clk 0:01:31]} 29. Rc7 {[%clk 0:01:10]}  Rxb2 {[%clk 0:01:10]} 30. Rxf7 {[%clk 0:01:08]}  Ng4 {[%clk 0:01:11]} 31. h3 {[%clk 0:00:57]}  Ne5 {[%clk 0:01:11]} 32. Rf5 {[%clk 0:00:57]}  Nc6 {[%clk 0:01:04]} 33. Rxg5 {[%clk 0:00:43]}  Nd4 {[%clk 0:00:52]} 34. Kg2 {[%clk 0:00:40]}  Nc2 {[%clk 0:00:45]} 35. Re5 {[%clk 0:00:17]}  Rxa2 {[%clk 0:00:33]} 36. Bd3 {[%clk 0:00:17]}  Nb4 {[%clk 0:00:28]} 37. Be4 {[%clk 0:00:16]}  a5 {[%clk 0:00:24]} 38. Re7 {[%clk 0:00:16]}  h6 {[%clk 0:00:25]} 39. Rh7+ {[%clk 0:00:14]}  Kg8 {[%clk 0:00:25]} 40. Rxh6 {[%clk 0:00:14]}  Re2 {[%clk 0:00:18]} 41. Kf3 {[%clk 0:00:13]}  Rb2 {[%clk 0:00:19]} 42. Rh5 {[%clk 0:00:10]}  a4 {[%clk 0:00:16]} 43. Ra5 {[%clk 0:00:10]}  Rb3+ {[%clk 0:00:12]} 44. Kf4 {[%clk 0:00:10]}  a3 {[%clk 0:00:12]} 45. h4 {[%clk 0:00:09]}  Kf8 {[%clk 0:00:08]} 46. h5 {[%clk 0:00:09]}  a2 {[%clk 0:00:09]} 47. h6 {[%clk 0:00:08]}  Rb2 {[%clk 0:00:06]} 48. Ra8+ {[%clk 0:00:07]}  Ke7 {[%clk 0:00:06]} 49. Kf3 {[%clk 0:00:04]}  Rb3+ {[%clk 0:00:05]} 50. Kg2 {[%clk 0:00:05]}  Rc3 {[%clk 0:00:02]} 51. h7 {[%clk 0:00:04]}  Rc8 {[%clk 0:00:02]} 52. Rxc8 {[%clk 0:00:05]}  a1=Q {[%clk 0:00:02]} 53. h8=Q {[%clk 0:00:05]}  Qa6 {[%clk 0:00:02]} 54. Qe5+ {[%clk 0:00:04]}  Kd7 {[%clk 0:00:02]} 55. Rc7+ {[%clk 0:00:04]}  Kd8 {[%clk 0:00:03]} 56. Qe7# {[%clk 0:00:05]} 1-0


[Site "https://www.chess.com"]

[Event "Titled Tuesday Blitz May 03 Late 2022"]
[White "Gascon Del Nogal, Jose Rafael"]
[Black "Vujic, Mihailo"]
[WhiteFideId "3902463"]
[BlackFideId "918873"]
[WhiteElo "2473"]
[BlackElo "2256"]
[Result "1-0"]
[Round "08"]
[TimeControl "180+1"]
[Date "2022.05.03"]
[WhiteClock "0:00:12"]
[BlackClock "0:00:15"]

1. c4 {[%clk 0:03:00]}  e5 {[%clk 0:02:58]} 2. Nc3 {[%clk 0:03:00]}  Nc6 {[%clk 0:02:59]} 3. g3 {[%clk 0:02:59]}  Nf6 {[%clk 0:02:59]} 4. Bg2 {[%clk 0:02:58]}  Bc5 {[%clk 0:03:00]} 5. e3 {[%clk 0:02:56]}  d5 {[%clk 0:03:00]} 6. cxd5 {[%clk 0:02:53]}  Nb4 {[%clk 0:03:00]} 7. d3 {[%clk 0:02:45]}  Nbxd5 {[%clk 0:02:54]} 8. Nxd5 {[%clk 0:02:16]}  Nxd5 {[%clk 0:02:55]} 9. Nf3 {[%clk 0:02:16]}  Bb4+ {[%clk 0:02:42]} 10. Bd2 {[%clk 0:02:10]}  Bxd2+ {[%clk 0:02:42]} 11. Qxd2 {[%clk 0:02:10]}  f6 {[%clk 0:02:39]} 12. O-O {[%clk 0:02:06]}  O-O {[%clk 0:02:36]} 13. e4 {[%clk 0:01:56]}  Ne7 {[%clk 0:02:17]} 14. d4 {[%clk 0:01:56]}  Bg4 {[%clk 0:02:03]} 15. d5 {[%clk 0:01:08]}  Bxf3 {[%clk 0:01:59]} 16. Bxf3 {[%clk 0:01:08]}  Nc8 {[%clk 0:02:00]} 17. Rac1 {[%clk 0:01:07]}  Nd6 {[%clk 0:02:01]} 18. Bg2 {[%clk 0:01:07]}  f5 {[%clk 0:01:50]} 19. f3 {[%clk 0:01:07]}  fxe4 {[%clk 0:01:45]} 20. fxe4 {[%clk 0:01:07]}  Rxf1+ {[%clk 0:01:45]} 21. Rxf1 {[%clk 0:01:06]}  Qe7 {[%clk 0:01:44]} 22. Re1 {[%clk 0:00:40]}  Rf8 {[%clk 0:01:43]} 23. Bh3 {[%clk 0:00:40]}  Qf6 {[%clk 0:01:38]} 24. Be6+ {[%clk 0:00:36]}  Kh8 {[%clk 0:01:38]} 25. Qe2 {[%clk 0:00:35]}  h6 {[%clk 0:01:28]} 26. Rc1 {[%clk 0:00:31]}  c5 {[%clk 0:01:03]} 27. Bh3 {[%clk 0:00:21]}  b6 {[%clk 0:00:56]} 28. Rf1 {[%clk 0:00:20]}  Qe7 {[%clk 0:00:55]} 29. Rxf8+ {[%clk 0:00:20]}  Qxf8 {[%clk 0:00:56]} 30. Bg2 {[%clk 0:00:16]}  Qe7 {[%clk 0:00:53]} 31. Qa6 {[%clk 0:00:11]}  Kh7 {[%clk 0:00:47]} 32. Qd3 {[%clk 0:00:07]}  Qg5 {[%clk 0:00:45]} 33. h3 {[%clk 0:00:04]}  Qc1+ {[%clk 0:00:43]} 34. Kh2 {[%clk 0:00:04]}  Qxb2 {[%clk 0:00:43]} 35. Qf3 {[%clk 0:00:04]}  Kg8 {[%clk 0:00:20]} 36. Qg4 {[%clk 0:00:04]}  c4 {[%clk 0:00:12]} 37. Qe6+ {[%clk 0:00:04]}  Nf7 {[%clk 0:00:12]} 38. Qe8+ {[%clk 0:00:04]}  Kh7 {[%clk 0:00:12]} 39. Qxf7 {[%clk 0:00:04]}  c3 {[%clk 0:00:12]} 40. Qf5+ {[%clk 0:00:03]}  Kg8 {[%clk 0:00:11]} 41. Qxe5 {[%clk 0:00:03]}  Qd2 {[%clk 0:00:10]} 42. Qe6+ {[%clk 0:00:03]}  Kh7 {[%clk 0:00:09]} 43. Qf5+ {[%clk 0:00:03]}  Kg8 {[%clk 0:00:09]} 44. Qc8+ {[%clk 0:00:03]}  Kh7 {[%clk 0:00:09]} 45. d6 {[%clk 0:00:03]}  c2 {[%clk 0:00:09]} 46. d7 {[%clk 0:00:04]}  c1=Q {[%clk 0:00:09]} 47. Qxc1 {[%clk 0:00:04]}  Qxc1 {[%clk 0:00:09]} 48. d8=Q {[%clk 0:00:05]}  Qb2 {[%clk 0:00:08]} 49. Qd5 {[%clk 0:00:05]}  b5 {[%clk 0:00:07]} 50. e5 {[%clk 0:00:05]}  b4 {[%clk 0:00:07]} 51. e6 {[%clk 0:00:05]}  Qe2 {[%clk 0:00:07]} 52. Qe4+ {[%clk 0:00:05]}  Qxe4 {[%clk 0:00:06]} 53. Bxe4+ {[%clk 0:00:06]}  Kg8 {[%clk 0:00:07]} 54. Bd5 {[%clk 0:00:05]}  Kf8 {[%clk 0:00:06]} 55. Bb3 {[%clk 0:00:06]}  Ke7 {[%clk 0:00:07]} 56. Kg2 {[%clk 0:00:06]}  a6 {[%clk 0:00:08]} 57. Kf3 {[%clk 0:00:07]}  a5 {[%clk 0:00:08]} 58. Ke4 {[%clk 0:00:07]}  a4 {[%clk 0:00:09]} 59. Bxa4 {[%clk 0:00:08]}  Kxe6 {[%clk 0:00:09]} 60. Bb3+ {[%clk 0:00:08]}  Kd6 {[%clk 0:00:09]} 61. Kf5 {[%clk 0:00:09]}  Kc5 {[%clk 0:00:09]} 62. Kg6 {[%clk 0:00:09]}  Kd4 {[%clk 0:00:10]} 63. Kxg7 {[%clk 0:00:10]}  Ke3 {[%clk 0:00:10]} 64. Kxh6 {[%clk 0:00:10]}  Kf3 {[%clk 0:00:11]} 65. h4 {[%clk 0:00:11]}  Kxg3 {[%clk 0:00:12]} 66. h5 {[%clk 0:00:12]}  Kf4 {[%clk 0:00:11]} 67. Kg6 {[%clk 0:00:13]}  Ke5 {[%clk 0:00:12]} 68. h6 {[%clk 0:00:13]}  Kd4 {[%clk 0:00:13]} 69. h7 {[%clk 0:00:14]}  Kc3 {[%clk 0:00:14]} 70. h8=Q+ {[%clk 0:00:14]}  Kd2 {[%clk 0:00:13]} 71. Qd4+ {[%clk 0:00:14]}  Kc1 {[%clk 0:00:14]} 72. Qd1+ {[%clk 0:00:12]}  Kb2 {[%clk 0:00:14]} 73. Qc2+ {[%clk 0:00:12]}  Ka3 {[%clk 0:00:15]} 74. Qc1# {[%clk 0:00:12]} 1-0


[Site "https://www.chess.com"]

[Event "Titled Tuesday Blitz May 03 Late 2022"]
[White "Jegorovas, Aleksandras"]
[Black "Rosen, Eric"]
[WhiteFideId "12801950"]
[BlackFideId "2032562"]
[WhiteElo "2247"]
[BlackElo "2362"]
[Result "0-1"]
[Round "08"]
[TimeControl "180+1"]
[Date "2022.05.03"]
[WhiteClock "0:00:01"]
[BlackClock "0:00:05"]

1. Nf3 {[%clk 0:02:57]}  d5 {[%clk 0:02:57]} 2. e3 {[%clk 0:02:56]}  Nf6 {[%clk 0:02:55]} 3. c4 {[%clk 0:02:56]}  e6 {[%clk 0:02:55]} 4. b3 {[%clk 0:02:56]}  Bd6 {[%clk 0:02:56]} 5. Bb2 {[%clk 0:02:56]}  O-O {[%clk 0:02:57]} 6. Nc3 {[%clk 0:02:55]}  Re8 {[%clk 0:02:55]} 7. Qc2 {[%clk 0:02:55]}  b6 {[%clk 0:02:46]} 8. Bd3 {[%clk 0:02:49]}  Bb7 {[%clk 0:02:40]} 9. O-O-O {[%clk 0:02:29]}  Na6 {[%clk 0:02:27]} 10. a3 {[%clk 0:02:24]}  e5 {[%clk 0:01:55]} 11. cxd5 {[%clk 0:02:15]}  Qe7 {[%clk 0:01:54]} 12. Ng5 {[%clk 0:01:58]}  h6 {[%clk 0:01:44]} 13. Nge4 {[%clk 0:01:50]}  Nxe4 {[%clk 0:01:35]} 14. Bxe4 {[%clk 0:01:05]}  Bxa3 {[%clk 0:01:35]} 15. Bxa3 {[%clk 0:00:44]}  Qxa3+ {[%clk 0:01:35]} 16. Qb2 {[%clk 0:00:44]}  Qa5 {[%clk 0:01:26]} 17. Kb1 {[%clk 0:00:43]}  Nb4 {[%clk 0:01:20]} 18. d4 {[%clk 0:00:39]}  exd4 {[%clk 0:01:15]} 19. Rxd4 {[%clk 0:00:38]}  Rad8 {[%clk 0:01:08]} 20. Rhd1 {[%clk 0:00:37]}  Qc5 {[%clk 0:01:00]} 21. Bf3 {[%clk 0:00:35]}  a5 {[%clk 0:00:51]} 22. Ne4 {[%clk 0:00:34]}  Qe7 {[%clk 0:00:46]} 23. d6 {[%clk 0:00:23]}  Bxe4+ {[%clk 0:00:20]} 24. Rxe4 {[%clk 0:00:22]}  Qd7 {[%clk 0:00:21]} 25. Rxe8+ {[%clk 0:00:21]}  Rxe8 {[%clk 0:00:18]} 26. dxc7 {[%clk 0:00:17]}  Qxc7 {[%clk 0:00:19]} 27. Rc1 {[%clk 0:00:17]}  Qd7 {[%clk 0:00:18]} 28. Qd4 {[%clk 0:00:16]}  Qe6 {[%clk 0:00:16]} 29. Qc4 {[%clk 0:00:16]}  Qg6+ {[%clk 0:00:14]} 30. e4 {[%clk 0:00:16]}  Qg5 {[%clk 0:00:12]} 31. Rd1 {[%clk 0:00:15]}  Rd8 {[%clk 0:00:09]} 32. Rxd8+ {[%clk 0:00:14]}  Qxd8 {[%clk 0:00:09]} 33. Qc3 {[%clk 0:00:13]}  Qd7 {[%clk 0:00:08]} 34. Be2 {[%clk 0:00:12]}  Qe6 {[%clk 0:00:05]} 35. f3 {[%clk 0:00:11]}  Qd6 {[%clk 0:00:06]} 36. g3 {[%clk 0:00:10]}  Kh7 {[%clk 0:00:06]} 37. Bc4 {[%clk 0:00:10]}  Qe7 {[%clk 0:00:04]} 38. Kb2 {[%clk 0:00:09]}  Nc6 {[%clk 0:00:04]} 39. Qd3 {[%clk 0:00:08]}  Ne5 {[%clk 0:00:04]} 40. Qe2 {[%clk 0:00:08]}  Qf6 {[%clk 0:00:04]} 41. Kb1 {[%clk 0:00:06]}  Nc6 {[%clk 0:00:05]} 42. f4 {[%clk 0:00:06]}  Qd4 {[%clk 0:00:04]} 43. e5 {[%clk 0:00:04]}  Nb4 {[%clk 0:00:05]} 44. Qb2 {[%clk 0:00:04]}  Qg1+ {[%clk 0:00:05]} 45. Qc1 {[%clk 0:00:04]}  Qxh2 {[%clk 0:00:05]} 46. Qd1 {[%clk 0:00:04]}  Qxg3 {[%clk 0:00:05]} 47. Bxf7 {[%clk 0:00:04]}  Qxf4 {[%clk 0:00:04]} 48. e6 {[%clk 0:00:04]}  Qf5+ {[%clk 0:00:04]} 49. Kb2 {[%clk 0:00:03]}  Qf6+ {[%clk 0:00:05]} 50. Kb1 {[%clk 0:00:03]}  Nc6 {[%clk 0:00:05]} 51. Qd3+ {[%clk 0:00:03]}  g6 {[%clk 0:00:05]} 52. Qd7 {[%clk 0:00:03]}  Ne7 {[%clk 0:00:05]} 53. Qe8 {[%clk 0:00:03]}  g5 {[%clk 0:00:05]} 54. Qf8 {[%clk 0:00:03]}  g4 {[%clk 0:00:03]} 55. Bg8+ {[%clk 0:00:03]}  Nxg8 {[%clk 0:00:03]} 56. e7 {[%clk 0:00:03]}  Qxe7 {[%clk 0:00:03]} 57. Qf5+ {[%clk 0:00:02]}  Kh8 {[%clk 0:00:03]} 58. Qxg4 {[%clk 0:00:02]}  Qh7+ {[%clk 0:00:04]} 59. Ka2 {[%clk 0:00:01]}  Qg7 {[%clk 0:00:04]} 60. Qh5 {[%clk 0:00:02]}  Nf6 {[%clk 0:00:04]} 61. Qh1 {[%clk 0:00:01]}  Kh7 {[%clk 0:00:05]} 62. b4 {[%clk 0:00:01]}  axb4 {[%clk 0:00:05]} 63. Kb3 {[%clk 0:00:01]}  Qg8+ {[%clk 0:00:04]} 64. Kxb4 {[%clk 0:00:01]}  Qd5 {[%clk 0:00:04]} 65. Qf1 {[%clk 0:00:01]}  Qe4+ {[%clk 0:00:05]} 0-1


[Site "https://www.chess.com"]

[Event "Titled Tuesday Blitz May 03 Late 2022"]
[White "Jones, Gawain C B"]
[Black "Hakobyan, Aram"]
[WhiteFideId "409561"]
[BlackFideId "13306677"]
[WhiteElo "2657"]
[BlackElo "2557"]
[Result "0-1"]
[Round "08"]
[TimeControl "180+1"]
[Date "2022.05.03"]
[WhiteClock "0:00:03"]
[BlackClock "0:00:11"]

1. Nf3 {[%clk 0:03:00]}  Nf6 {[%clk 0:02:57]} 2. g3 {[%clk 0:03:00]}  d5 {[%clk 0:02:55]} 3. Bg2 {[%clk 0:03:00]}  Nc6 {[%clk 0:02:53]} 4. d4 {[%clk 0:03:00]}  Bf5 {[%clk 0:02:52]} 5. O-O {[%clk 0:02:59]}  Nb4 {[%clk 0:02:52]} 6. Na3 {[%clk 0:02:58]}  e6 {[%clk 0:02:51]} 7. Ne5 {[%clk 0:02:52]}  c6 {[%clk 0:02:49]} 8. c3 {[%clk 0:02:48]}  Na6 {[%clk 0:02:49]} 9. Qa4 {[%clk 0:02:41]}  Nc7 {[%clk 0:02:36]} 10. c4 {[%clk 0:02:37]}  Be7 {[%clk 0:02:32]} 11. Bf4 {[%clk 0:02:23]}  O-O {[%clk 0:02:32]} 12. Rfd1 {[%clk 0:02:23]}  h6 {[%clk 0:02:24]} 13. Rac1 {[%clk 0:02:22]}  Ne4 {[%clk 0:02:12]} 14. Nb1 {[%clk 0:02:14]}  Bh7 {[%clk 0:01:59]} 15. Nc3 {[%clk 0:02:13]}  Nd6 {[%clk 0:01:59]} 16. cxd5 {[%clk 0:02:01]}  exd5 {[%clk 0:01:58]} 17. Nxc6 {[%clk 0:01:56]}  bxc6 {[%clk 0:01:58]} 18. Qxc6 {[%clk 0:01:57]}  Rb8 {[%clk 0:01:49]} 19. Bxd5 {[%clk 0:01:34]}  Rb6 {[%clk 0:01:46]} 20. Qa4 {[%clk 0:01:33]}  Nxd5 {[%clk 0:01:27]} 21. Nxd5 {[%clk 0:01:32]}  Rxb2 {[%clk 0:01:28]} 22. Qa3 {[%clk 0:01:21]}  Rb6 {[%clk 0:01:20]} 23. Qxa7 {[%clk 0:01:12]}  Rb7 {[%clk 0:01:19]} 24. Qa6 {[%clk 0:01:08]}  Rd7 {[%clk 0:01:15]} 25. Nb6 {[%clk 0:01:00]}  Rb7 {[%clk 0:01:07]} 26. Nc8 {[%clk 0:00:50]}  Rd7 {[%clk 0:01:00]} 27. Nb6 {[%clk 0:00:46]}  Bf5 {[%clk 0:00:55]} 28. Nxd7 {[%clk 0:00:42]}  Qxd7 {[%clk 0:00:55]} 29. Qc6 {[%clk 0:00:24]}  Qe6 {[%clk 0:00:54]} 30. d5 {[%clk 0:00:23]}  Qf6 {[%clk 0:00:47]} 31. Qc3 {[%clk 0:00:20]}  Qg6 {[%clk 0:00:44]} 32. Qe3 {[%clk 0:00:18]}  Re8 {[%clk 0:00:42]} 33. Rc6 {[%clk 0:00:18]}  Bd7 {[%clk 0:00:34]} 34. Ra6 {[%clk 0:00:17]}  Bf6 {[%clk 0:00:29]} 35. Qa7 {[%clk 0:00:08]}  Bh3 {[%clk 0:00:17]} 36. Ra4 {[%clk 0:00:07]}  Nf5 {[%clk 0:00:14]} 37. Qa6 {[%clk 0:00:05]}  Qh5 {[%clk 0:00:12]} 38. f3 {[%clk 0:00:05]}  Ne3 {[%clk 0:00:11]} 39. Bxe3 {[%clk 0:00:04]}  Rxe3 {[%clk 0:00:12]} 40. Qc4 {[%clk 0:00:03]}  Re8 {[%clk 0:00:07]} 41. Kf2 {[%clk 0:00:03]}  Qe5 {[%clk 0:00:08]} 42. e4 {[%clk 0:00:03]}  Bd8 {[%clk 0:00:08]} 43. Qe2 {[%clk 0:00:02]}  Bb6+ {[%clk 0:00:08]} 44. Ke1 {[%clk 0:00:03]}  Qc3+ {[%clk 0:00:08]} 45. Rd2 {[%clk 0:00:03]}  Be3 {[%clk 0:00:08]} 46. Ra6 {[%clk 0:00:03]}  Bxd2+ {[%clk 0:00:09]} 47. Qxd2 {[%clk 0:00:03]}  Qxf3 {[%clk 0:00:09]} 48. Qf4 {[%clk 0:00:02]}  Rxe4+ {[%clk 0:00:10]} 49. Kd2 {[%clk 0:00:02]}  Rxf4 {[%clk 0:00:10]} 50. gxf4 {[%clk 0:00:03]}  Qxd5+ {[%clk 0:00:11]} 0-1


[Site "https://www.chess.com"]

[Event "Titled Tuesday Blitz May 03 Late 2022"]
[White "Keller, Peter"]
[Black "Gomez Dieguez, David"]
[WhiteFideId "1272105"]
[BlackFideId "22223630"]
[WhiteElo "2275"]
[BlackElo "2115"]
[Result "0-1"]
[Round "08"]
[TimeControl "180+1"]
[Date "2022.05.03"]
[WhiteClock "0:00:01"]
[BlackClock "0:00:37"]

1. e4 {[%clk 0:02:56]}  c6 {[%clk 0:02:59]} 2. d4 {[%clk 0:02:55]}  d5 {[%clk 0:03:00]} 3. exd5 {[%clk 0:02:54]}  cxd5 {[%clk 0:03:01]} 4. Bd3 {[%clk 0:02:54]}  Nf6 {[%clk 0:03:01]} 5. c3 {[%clk 0:02:42]}  Nc6 {[%clk 0:03:01]} 6. Bf4 {[%clk 0:02:38]}  Bg4 {[%clk 0:03:00]} 7. Qb3 {[%clk 0:02:10]}  Qd7 {[%clk 0:03:00]} 8. Nd2 {[%clk 0:02:05]}  e6 {[%clk 0:03:00]} 9. Ngf3 {[%clk 0:01:55]}  Bd6 {[%clk 0:03:00]} 10. Bxd6 {[%clk 0:01:49]}  Qxd6 {[%clk 0:03:01]} 11. O-O {[%clk 0:01:48]}  O-O {[%clk 0:03:01]} 12. Rae1 {[%clk 0:01:47]}  Ne7 {[%clk 0:03:02]} 13. Ne5 {[%clk 0:01:42]}  Bf5 {[%clk 0:03:02]} 14. Bxf5 {[%clk 0:01:42]}  Nxf5 {[%clk 0:03:03]} 15. g4 {[%clk 0:01:40]}  Ne7 {[%clk 0:03:00]} 16. f4 {[%clk 0:01:40]}  b5 {[%clk 0:02:40]} 17. Qxb5 {[%clk 0:01:04]}  Rab8 {[%clk 0:02:36]} 18. Qd3 {[%clk 0:01:04]}  Rxb2 {[%clk 0:02:32]} 19. f5 {[%clk 0:01:04]}  Rxa2 {[%clk 0:02:19]} 20. g5 {[%clk 0:01:00]}  Ne4 {[%clk 0:02:13]} 21. Rxe4 {[%clk 0:00:19]}  Rxd2 {[%clk 0:01:58]} 22. Qxd2 {[%clk 0:00:19]}  Nxf5 {[%clk 0:01:56]} 23. Ref4 {[%clk 0:00:16]}  g6 {[%clk 0:01:09]} 24. R4f3 {[%clk 0:00:16]}  Kg7 {[%clk 0:00:55]} 25. Rh3 {[%clk 0:00:15]}  Rh8 {[%clk 0:00:54]} 26. Qe1 {[%clk 0:00:15]}  Qe7 {[%clk 0:00:48]} 27. Nf3 {[%clk 0:00:12]}  h5 {[%clk 0:00:42]} 28. Qe5+ {[%clk 0:00:08]}  Kg8 {[%clk 0:00:41]} 29. Rb1 {[%clk 0:00:06]}  Kh7 {[%clk 0:00:38]} 30. Nd2 {[%clk 0:00:01]}  Qxg5+ {[%clk 0:00:37]} 31. Kh1 {[%clk 0:00:01]}  Qxd2 {[%clk 0:00:37]} 0-1


[Site "https://www.chess.com"]